Cogmind - Beta 14 *** ADVENTURER MODE // 2024.09.02 @ 18:08:03 Player: Bert Result: Destroyed by NI-VEB(R) with Subdweller Machine Gun Performance ------------- Evolutions (0) 0 Regions Visited (3) 600 Robots Destroyed (14) 70 Value Destroyed (421) 421 Prototype IDs (0) 0 Alien Tech Used (0) 0 Bonus (60) 60 TOTAL SCORE: 1151 Bonus ------- Follower Combat Kills 60 Cogmind --------- Core Integrity 0/250 Matter 300/300 Energy 100/100 System Corruption 0% Temperature Cool (0) Movement Core (50) Location -10/Subcaves Parts ------- > --- POWER (1) -------- (None) > --- PROPULSION (2) --- (None) > --- UTILITY (2) ------ (None) > --- WEAPON (2) ------- (None) > --- INVENTORY (5) ---- Improved Ion Engine Subdweller Monowheel Improved Heat Sink Scrap Shield Fragment (50) Scrap Shield Fragment (46) Peak State ------------ > --- POWER ------------ Light Nuclear Core > --- PROPULSION ------- Compact Wheel Subdweller Monowheel > --- UTILITY ---------- Scrap Shield > --- WEAPON ----------- Beam Rifle Particle Gun > --- INVENTORY -------- Improved Ion Engine Subdweller Monowheel Improved Heat Sink Scrap Shield Fragment Scrap Shield Fragment [Rating: 15] Favorites ----------- Power Ion Engine Engine Ion Engine Power Core Light Nuclear Core Propulsion Compact Wheel Wheel Compact Wheel Utility Small Storage Unit Device Heat Sink Storage Small Storage Unit Protection Scrap Shield Weapon Particle Gun Energy Gun Particle Gun Ballistic Gun Assault Rifle Special Weapon Mining Laser Build | -11 -10 -10 -10 ------- Run | Yrd Mat Min Sub Slots Evolved . | . . . . Power . | . . . . Propulsion . | . . . . Utility . | . . . . Weapon . | . . . . Parts Attached 24 | 7 3 11 3 Power 4 | 2 . 1 1 Engine 3 | 2 . 1 . Core 1 | . . . 1 Reactor . | . . . . Propulsion 5 | 2 . 2 1 Treads . | . . . . Leg . | . . . . Wheel 5 | 2 . 2 1 Hover . | . . . . Flight . | . . . . Utility 7 | 1 2 3 1 Device 5 | . 2 3 . Storage 1 | 1 . . . Processor . | . . . . Hackware . | . . . . Protection 1 | . . . 1 Artifact . | . . . . Weapon 8 | 2 1 5 . Energy Gun 6 | 1 1 4 . Energy Cannon . | . . . . Ballistic Gun 1 | 1 . . . Ballistic Cannon . | . . . . Launcher . | . . . . Special Weapon 1 | . . 1 . Impact Weapon . | . . . . Slashing Weapon . | . . . . Piercing Weapon . | . . . . Special Melee Weapon . | . . . . Unidentified Prototypes . | . . . . Parts Lost 7 | . . 1 6 Power 1 | . . . 1 Propulsion 2 | . . . 2 Utility 2 | . . 1 1 Weapon 2 | . . . 2 Highest Loss Streak 5 | . . 1 5 To Critical Strikes 1 | . . . 1 Average Slot Usage (%) 91 | . 98 95 75 Engine 10 | . 14 14 1 Core 2 | . . . 10 Wheel 27 | . 28 28 25 Device 10 | . 12 13 1 Storage 10 | . 14 14 1 Protection 2 | . . . 8 Energy Gun 19 | . 14 18 25 Ballistic Gun 4 | . 14 4 . Peak Build Rating 15 | 6 7 12 15 Average Rating 9 | 4 6 8 12 On Entrance 6 | . 6 7 12 Naked Turns 27 | . . . 27 Heaviest Build 31 | 14 15 19 31 Greatest Support 36 | 26 26 32 36 Greatest Overweight (x) . | . . . . Average Overweight (x) . | . . . . Largest Inventory Capacity 8 | 8 8 8 8 Average Capacity 7 | 6 8 8 5 Most Carried 8 | 5 8 8 8 Average Carried 6 | 2 5 7 5 Final Capacity 8 | 8 8 8 5 Final Carried 8 | 3 8 6 5 Class Distribution -------------------- 55% | Mutant 44% | Scavenger-Mutant Dominant Class ---------------- Mutant | -10/Materials Mutant | -10/Mines Scavenger-Mutant | -10/Subcaves Resources | -11 -10 -10 -10 ----------- Run | Yrd Mat Min Sub Matter Collected 510 | 225 102 153 30 Remotely 10 | . 10 . . Salvage Created 598 | . 137 461 . Parts 29 | . 6 23 . Haulers Intercepted . | . . . . Recyclers Shooed 1 | . . 1 . Parts Field Recycled . | . . . . Retrieved Matter . | . . . . Parts Self-Destructed . | . . . . Prevented . | . . . . Kills | -11 -10 -10 -10 ------- Run | Yrd Mat Min Sub Combat Hostiles Destroyed 11 | . 2 9 . Guns 11 | . 2 9 . Classes Destroyed 5 | . 2 3 . Recycler 2 | . . 2 . Watcher 1 | . 1 . . Swarmer 3 | . . 3 . Grunt 6 | . 2 4 . Sentry 2 | . . 2 . Best Kill Streak 5 | . 2 5 . Combat Bots Only 2 | . 2 2 . Max Kills in Single Turn 1 | . 1 1 . Gunslinging . | . . . . Exploded . | . . . . Melee . | . . . . Uniques/NPCs Destroyed . | . . . . Combat | -11 -10 -10 -10 -------- Run | Yrd Mat Min Sub Hostile Shots Fired 92 | . 6 37 49 Missed 25 | . 2 8 15 Damage Taken 1070 | . 46 393 631 Core 251 | . . 77 174 Absorbed by Shields . | . . . . Ignored by Resistances 277 | . 14 92 171 Core Remaining (%) 100 | 100 . . . Volleys Fired 56 | . 11 45 . Largest 2 | . 2 2 . Hottest 121 | . 60 121 . Shots Fired 96 | . 22 74 . Gun 80 | . 22 58 . Cannon . | . . . . Launcher . | . . . . Special 16 | . . 16 . Kinetic 27 | . 11 16 . Thermal 63 | . 5 58 . Explosive . | . . . . Electromagnetic 6 | . 6 . . Robot Hit Streak 12 | . 8 12 . Robot Miss Streak 2 | . 1 2 . Penetration Max . | . . . . Secondary Targets 1 | . . 1 . Max Gunslinging Chain 1 | . . 1 . Shots Hit Robots 61 | . 19 42 . Core Hits 29 | . 8 21 . Critical Kills . | . . . . Critical Parts Destroyed . | . . . . Critical Strikes 4 | . 1 3 . Burn 3 | . . 3 . Corrupt 1 | . 1 . . Melee Attacks . | . . . . Impact . | . . . . Slashing . | . . . . Piercing . | . . . . Sneak Attacks . | . . . . Combat Hostiles . | . . . . Follow-up Attacks . | . . . . Damage Inflicted 772 | . 222 539 11 Guns 745 | . 222 523 . Cannons . | . . . . Explosions . | . . . . Melee . | . . . . Ramming 27 | . . 16 11 Kinetic 223 | . 105 118 . Thermal 458 | . 53 405 . Explosive . | . . . . Electromagnetic 64 | . 64 . . Impact . | . . . . Slashing . | . . . . Piercing . | . . . . Highest Corruption . | . . . . Average Corruption . | . . . . Corruption Purged . | . . . . Corruption Blocked . | . . . . Overload Shots . | . . . . Overflow Damage . | . . . . Projectiles . | . . . . Explosions . | . . . . Melee . | . . . . Knockbacks . | . . . . Impact . | . . . . Kinetic . | . . . . Secondary . | . . . . Self-Inflicted Damage 12 | . . 7 5 Shots . | . . . . Rammed 5 | . . 3 2 Targets Rammed 5 | . . 3 2 Kicked . | . . . . Crushed . | . . . . Highest Temperature 162 | . 17 162 . Average Temperature 60 | . 12 64 . Received Heat Transfer 369 | . 69 192 108 Siege Activations . | . . . . Robots Corrupted . | . . . . Combat Hostiles . | . . . . Parts Fried . | . . . . Impact Corruptions . | . . . . Robots Melted . | . . . . Combat Hostiles . | . . . . Parts Melted 4 | . . 4 . Heat Transferred 1340 | . 125 1215 . Parts Sabotaged . | . . . . Parts Stolen . | . . . . Parts Stripped . | . . . . Power Chain Reactions . | . . . . Alert | -11 -10 -10 -10 ------- Run | Yrd Mat Min Sub Peak Influence 203 | . 87 203 . Initial 28 | . . 28 . Average 64 | . 38 75 . Maximum Alert Level 1 | . . 1 . Low Security (%) 90 | 100 100 87 . Level 1 9 | . . 12 . Level 2 . | . . . . Level 3 . | . . . . Level 4 . | . . . . Level 5 . | . . . . High Security . | . . . . Max Security . | . . . . Squads Dispatched . | . . . . Investigation . | . . . . Extermination . | . . . . Reinforcement . | . . . . Assault . | . . . . Garrison . | . . . . Intercept . | . . . . Searches Triggered . | . . . . Construction Impeded . | . . . . Haulers Reinforced . | . . . . Active Scanning Responses . | . . . . Cargo Convoy Interrupts . | . . . . Stealth | -11 -10 -10 -10 --------- Run | Yrd Mat Min Sub Distress Signals 1 | . . 1 . Communications Jammed . | . . . . Distress Signals . | . . . . Times Spotted 35 | . 5 12 18 Peak Tracking Total 7 | . 2 3 7 Tactical Retreats 5 | . . 2 3 Traps | -11 -10 -10 -10 ------- Run | Yrd Mat Min Sub Traps Triggered . | . . . . Indirectly . | . . . . Trap Hack Attempts . | . . . . Triggered . | . . . . Disarmed . | . . . . Reprogrammed . | . . . . Reused . | . . . . Traps Extracted . | . . . . Installed . | . . . . Triggered . | . . . . Machines | -11 -10 -10 -10 ---------- Run | Yrd Mat Min Sub Machines Disabled 3 | . . 3 . Max in Single Turn 1 | . . 1 . Machines Repaired . | . . . . Machines Dismantled . | . . . . Machines Sabotaged . | . . . . Overloaded Fab Kills . | . . . . Hacking | -11 -10 -10 -10 --------- Run | Yrd Mat Min Sub Machines Accessed 1 | . 1 . . Terminals 1 | . 1 . . Fabricators . | . . . . Repair Stations . | . . . . Recycling Units . | . . . . Scanalyzers . | . . . . Garrison Access . | . . . . Total Hacks 4 | . 4 . . Successful 1 | . 1 . . Failed 3 | . 3 . . Catastrophic . | . . . . Database Lockouts . | . . . . Manual . | . . . . Terminals 4 | . 4 . . Fabricators . | . . . . Repair Stations . | . . . . Recycling Units . | . . . . Scanalyzers . | . . . . Garrison Access . | . . . . Terminal Hacks 1 | . 1 . . Branch Access Points 1 | . 1 . . Fabricator Hacks . | . . . . Repair Station Hacks . | . . . . Recycling Unit Hacks . | . . . . Scanalyzer . | . . . . Garrison Access Hacks . | . . . . Unauthorized Hacks . | . . . . Terminals . | . . . . Fabricators . | . . . . Repair Stations . | . . . . Recycling Units . | . . . . Scanalyzers . | . . . . Garrison Access . | . . . . Data Cores Recovered . | . . . . Used . | . . . . Hacking Detections 1 | . 1 . . Full Trace Events . | . . . . Feedback Events . | . . . . Feedback Blocked . | . . . . Robot Schematics Acquired . | . . . . Robots Built . | . . . . Authchips . | . . . . Time . | . . . . Total Robot Build Rating . | . . . . Part Schematics Acquired . | . . . . Parts Built . | . . . . Authchips . | . . . . Time . | . . . . Total Part Build Rating . | . . . . Parts Repaired . | . . . . Time . | . . . . Parts Recycled . | . . . . Recycled Matter . | . . . . Retrieved Matter . | . . . . Retrieved Components . | . . . . Parts Scanalyzed . | . . . . Part Schematics Acquired . | . . . . Parts Damaged . | . . . . Bothacking | -11 -10 -10 -10 ------------ Run | Yrd Mat Min Sub Used RIF Installer . | . . . . Robots Hacked . | . . . . Non-combat . | . . . . Combat . | . . . . Robot Hacks Applied . | . . . . Relay Couplers Released . | . . . . Fabnet Peak Effective % . | . . . . Robots Rewired . | . . . . Allies Hacked . | . . . . Hacks Repelled . | . . . . Allies | -11 -10 -10 -10 -------- Run | Yrd Mat Min Sub Total Allies 2 | . . 2 . Largest Group 2 | . . 2 . Highest-Rated Group 45 | . . 45 . Highest-Rated Ally 31 | . . 31 . Total Orders . | . . . . Ally Attacks 11 | . . 11 . Total Damage 85 | . . 85 . Kills 2 | . . 2 . Allies Corrupted . | . . . . Allies Melted . | . . . . Intel | -11 -10 -10 -10 ------- Run | Yrd Mat Min Sub Robot Analysis Total . | . . . . Derelict Logs Recovered 2 | . . 2 . Drone Launches . | . . . . Drone Recoveries . | . . . . Exploration | -11 -10 -10 -10 ------------- Run | Yrd Mat Min Sub Turns Passed 1679 | 48 257 973 401 Spaces Moved 1416 | 41 224 762 389 Core 65 | 12 . . 53 Treads . | . . . . Legs . | . . . . Wheels 1351 | 29 224 762 336 Hover . | . . . . Flight . | . . . . Fastest Speed 50 | 50 90 90 50 Average Speed 94 | 78 90 94 97 Slowest Speed 110 | 90 90 100 110 Overloaded Moves . | . . . . Propulsion Burnouts . | . . . . Robots Hopped . | . . . . Cave-ins Triggered 1 | . . 1 . Exploration Rate (%) 38 | 4 28 100 22 Regions Visited 3 Branch Regions 2 Pre-discovered Areas . | . . . . Known Exits Taken 1 | . 1 . . Unknown Exits Taken 2 | 1 . 1 . Scrap Searched 1 | . . 1 . Spaces Dug 16 | . . 16 . Terrain Destroyed 16 | . . 16 . Melee . | . . . . Projectile 16 | . . 16 . AOE . | . . . . Terrain Rammed . | . . . . Walls Destroyed . | . . . . Machines Disabled . | . . . . Actions | -11 -10 -10 -10 --------- Run | Yrd Mat Min Sub Total 1646 | 56 258 917 415 Wait 87 | . 11 69 7 Move 1413 | 40 223 761 389 Hop . | . . . . Pick Up 36 | 9 7 13 7 Fast Attach . | . . . . Attach 15 | 6 3 5 1 Detach 4 | . 2 1 1 Swap 9 | 1 . 6 2 Drop 21 | . 1 14 6 Fire 56 | . 11 45 . Melee . | . . . . Ram 5 | . . 3 2 Kick . | . . . . Crush . | . . . . Escape Stasis . | . . . . Rewire . | . . . . Trap . | . . . . Miscellaneous . | . . . . Route ------- -11/Scrapyard -10/Materials -10/Mines (discovered 3 exits: [*Mat x2] / [*Sub]) -10/Subcaves History --------- Turn | Location | Event 30 | -11/Scrapyard | Discovered new exit (range 16) 49 | -11/Scrapyard | Entered Materials 236 | -10/Materials | Discovered new exit (range 15) 287 | -10/Materials | Identified exit to Mines 300 | -10/Materials | Build established: Mutant 306 | -10/Materials | Entered Mines 387 | -10/Mines | Discovered new exit (range 3) 718 | -10/Mines | Learned Materials emergency access door positions 731 | -10/Mines | Learned Materials terminal intel 1151 | -10/Mines | Crushed by falling debris 1253 | -10/Mines | Discovered new exit (range 5) 1259 | -10/Mines | Discovered new exit (range 6) 1279 | -10/Mines | Entered Subcaves 1284 | -10/Subcaves | Ambushed by Subdwellers from Twisted Machinery 1459 | -10/Subcaves | Ambushed by swarm of Subdwellers 1462 | -10/Subcaves | Ambushed by Subdwellers from Twisted Machinery 1462 | -10/Subcaves | Ambushed by Subdwellers from Twisted Machinery 1462 | -10/Subcaves | Ambushed by Subdwellers from Twisted Machinery 1464 | -10/Subcaves | Build established: Scavenger-Mutant 1508 | -10/Subcaves | Lost 4 allies 1646 | -10/Subcaves | Core integrity fell below 50% 1654 | -10/Subcaves | Core integrity fell below 20% 1680 | -10/Subcaves | Destroyed by NI-VEB(R) with Subdweller Machine Gun Last Messages --------------- 01469_ YM-OHI(R) suffers critical hit (Burn). 01469_ T1-RV2(R) affixes Scrap Shield Fragment to Scrap Shield. 01471_ M2-HO0(g) suffers critical hit (Burn). 01471_ GC-BE2(R) destroyed. 01471_ YM-OHI(R) affixes Scrap Shield Fragment to Scrap Shield. 01471_ M2-HO0(g) destroyed. 01472_ WW-SGN(R) destroyed. 01475_ OS-75T(g) destroyed. 01476_ YM-OHI(R) affixes Scrap Shield Fragment to Scrap Shield. 01477_ 42-MIV(g) destroyed. 01479_ T1-RV2(R) affixes Scrap Shield Fragment to Scrap Shield. 01493_ Subatomizers dissect the Sub. Optics. 01538_ Subatomizers dissect the Sub. Monowheel. 01563_ Scrap Shield destroyed. 01642_ Critical hit (Destroy). 01642_ Com. Wheel destroyed. 01647_ Lgt. Nuclear Core destroyed. 01647_ Particle Gun destroyed. 01651_ Beam Rifle destroyed. 01653_ Sub. Monowheel destroyed. Map ----- +----------------------------------------------------+ | ???????#### #????##??????# ##??????# | | ??????## ##### ##?????# #??????# | | ??????# #####?# #??????## ## | | ??????# ### #?# ## #????##### | | ??????# ### #?# ### #?###?## | | ??????# #### #?# ## ### ## | | ??????## #### ### | | ???????### #### ### | | ?????????## ### #?# ## ##### | | ????????### ### #?# ##??## | | ????????# ## ### ### | | ????????## ##### ### | | ?????????####???### ###?# | | ??????????????????# ###### | | ??????????????????# ## | | ???????????####???# ### """""""""" | | ???????????# ##?# #?? ## | | ???????????# ##### ##? ?## | | ???????????# ### ## #?## | | ??????????## #?## | | ?????????## ### | | ????????## ## # | | ????????# ## " [ | | ????????# ### ?""""""" " | | ????????# #####?### #???" " ###" | | ????????# ####@##???? ????##"???#" | | ????????# ## #????? #?????#????# | | ????????## ## #??????##???????????## | | ???????### RR ##???????????????????# | | ??????## #???????????????????## | | ??????# ####??????????#?????## | | ??????# ### ## #??????????# ???## | | ??????# ### ####?####### #???????????# ### | | ??????## ##?###??????????######???????????# | | ???????###????????????????????????????????# # | | ??????????????????????????????????????????##### | | ????????????????????????????????????????????## | | ???????????????????????????????????????????## | | ???????????????????????????????????????????# | | ???????????????????????????????????????????# | | ???????????????????????????????????????????## | | ????????????????????????????????????????????#### | | ??????????????????????????????????????????????###! | | ??????????????????????????????????????????????# | | ??????????????????????????????????????????????## | | ???????????????????????????????????????????????# | | ??????????????????????????????????????????????## | | ?????????????####?????########??????????###??## | | ????????###### ##???## # # ##??????####"#### | | ????????# ##### ##???### "## | +----------------------------------------------------+ Best States ------------- Heat Dissipation 39 Energy Generation 14 Energy Capacity 265 Matter Stores 300 Matter Capacity 300 Sight Range 16 Terrain Scan Density 10 Armor Coverage 800 Resistance: KI 20 Resistance: TH 20 Resistance: EX 20 Resistance: EM 20 Resistance: I 20 Resistance: S 20 Resistance: P 20 Evasion (%) 50 Offensive Hacking 10 Item Schematics ----------------- None Robot Schematics ------------------ None Fabricated ------------ Nothing Alien Tech Used ----------------- None Achievements -------------- Unlikely Earthworm Challenges ------------ None Game ------ Seed StasisBombReplica Manual? 0 Play Time 00:15:31 Cumulative 31.4 hours Start 2024.09.02 @ 17:56:17 End 2024.09.02 @ 18:08:03 Sessions 1 Manual Loads 0 Difficulty Adventurer Special Mode None Game No. 65 Rogue 0 Adventurer 65 Explorer 0 Win Type - Total 0 Types 0/0/0/0/0/0/0/0/0 Lore% 22 Gallery% 36 Achievement% 28 Wizard Run 0 Options --------- Layout 0 ASCII 0 Keyboard 1 Movement Numpad Keybinds 0 Fullscreen 1 Font 18/SmallcapsGlow Map View 76x50 Zoom Use 0% Tactical HUD 1 Map Filters NONE Filters NONE Steam 1 RUN: 8412c093-1301-4a02-a363-b4dfa5b2f4b9